Period,Quarter,"Recipient Name",City,Province,Country,Title,Language,Genre,Date,"Final Value","Original Value",Type,Purpose,Comments
2016-2017,P4,"9317-3946 Qu�bec inc.",Montreal,Quebec,Canada,"Secret d'hiver",French,Drama,2016-01-06,0.00,80000.00,"Recoupable Advance",Mini-treaties,"Amended contract signed  01-MAY-15"
2016-2017,P4,"Couzin Films Inc.",Montreal,Quebec,Canada,"Portfolio 2016-2017 Couzin Films Inc.",French,Comedy,2017-01-09,15000.00,15000.00,"Recoupable Advance","Development Program",
2016-2017,P4,"Cin�maginaire inc.",Montreal,Quebec,Canada,"Portfolio 2016-2017 Cin�maginaire Inc.",French,Drama,2017-01-10,17000.00,17000.00,"Recoupable Advance","Development Program",
2016-2017,P4,"Cin�maginaire inc.",Montreal,Quebec,Canada,"Portfolio 2016-2017 Cin�maginaire Inc.",French,Drama,2017-01-10,79000.00,62000.00,"Recoupable Advance","Development Program",
2016-2017,P4,"Cin�maginaire inc.",Montreal,Quebec,Canada,"Portfolio 2016-2017 Cin�maginaire Inc.",French,Drama,2017-01-10,139000.00,60000.00,"Recoupable Advance","Development Program",
2016-2017,P4,"Cin�maginaire inc.",Montreal,Quebec,Canada,"Portfolio 2016-2017 Cin�maginaire Inc.",French,Drama,2017-01-10,200000.00,61000.00,"Recoupable Advance","Development Program",
2016-2017,P4,"Productions cin�-sc�ne inc.",Quebec,Quebec,Canada,"Portfolio 2016-2017 Productions cin�-sc�ne inc.",French,Thriller,2017-01-10,15000.00,15000.00,"Recoupable Advance","Development Program",
2016-2017,P4,"ZMA Productions Inc.",Montreal,Quebec,Canada,"Portfolio 2016-2017 ZMA Productions Inc.",French,Action/Adventure,2017-01-10,15000.00,15000.00,"Recoupable Advance","Development Program",
2016-2017,P4,"Eagle Vision Inc.",Winnipeg,Manitoba,Canada,"Portfolio 2016-2017 Eagle Vision Inc.",English,Comedy,2017-01-12,15000.00,15000.00,"Recoupable Advance","Development Program",
2016-2017,P4,"Eagle Vision Inc.",Winnipeg,Manitoba,Canada,"Portfolio 2016-2017 Eagle Vision Inc.",English,"Historical Drama",2017-01-12,30000.00,15000.00,"Recoupable Advance","Development Program",
2016-2017,P4,"Microclimat Films Inc.",Montreal,Quebec,Canada,"Portfolio 2016-2017 Microclimat Films inc.",French,Drama,2017-01-12,15000.00,15000.00,"Recoupable Advance","Development Program",
2016-2017,P4,"Middle Child Films Inc.",Toronto,Ontario,Canada,"Portfolio 2016-2017 Middle Child Films Inc.",English,Thriller,2017-01-12,15000.00,15000.00,"Recoupable Advance","Development Program",
2016-2017,P4,"SHERPAS FILMS INC.",Montreal,Quebec,Canada,"Portfolio 2016-2017 SHERPAS FILMS INC.",French,Drama,2017-01-12,15000.00,15000.00,"Recoupable Advance","Development Program",
2016-2017,P4,"8888256 Canada Inc.",Toronto,Ontario,Canada,"O, Brazen Age",English,Drama,2017-01-17,12000.00,12000.00,"Recoupable Advance","Marketing Program",
2016-2017,P4,"Conquering Lion Pictures Inc.",Toronto,Ontario,Canada,"Portfolio 2016-2017 Conquering Lion Pictures Inc.",English,"Historical Drama",2017-01-17,30000.00,15000.00,"Recoupable Advance","Development Program",
2016-2017,P4,"Conquering Lion Pictures Inc.",Toronto,Ontario,Canada,"Portfolio 2016-2017 Conquering Lion Pictures Inc.",French,Drama,2017-01-17,15000.00,15000.00,"Recoupable Advance","Development Program",
2016-2017,P4,"DCP Mystery Arts Inc.",Toronto,Ontario,Canada,"Portfolio 2016-2017 DCP Mystery Arts Inc.",English,Action/Adventure,2017-01-17,21001.00,21001.00,"Recoupable Advance","Development Program",
2016-2017,P4,"DCP Mystery Arts Inc.",Toronto,Ontario,Canada,"Portfolio 2016-2017 DCP Mystery Arts Inc.",English,Drama,2017-01-17,42002.00,21001.00,"Recoupable Advance","Development Program",
2016-2017,P4,"DCP Mystery Arts Inc.",Toronto,Ontario,Canada,"Portfolio 2016-2017 DCP Mystery Arts Inc.",English,"Historical Drama",2017-01-17,200000.00,109892.00,"Recoupable Advance","Development Program",
2016-2017,P4,"DCP Mystery Arts Inc.",Toronto,Ontario,Canada,"Portfolio 2016-2017 DCP Mystery Arts Inc.",English,Drama,2017-01-17,69107.00,27105.00,"Recoupable Advance","Development Program",
2016-2017,P4,"DCP Mystery Arts Inc.",Toronto,Ontario,Canada,"Portfolio 2016-2017 DCP Mystery Arts Inc.",English,Drama,2017-01-17,90108.00,21001.00,"Recoupable Advance","Development Program",
2016-2017,P4,"V�locit� International inc.",Quebec,Quebec,Canada,"Portfolio 2016-2017 V�locit� International inc.",French,Mystery/Crime/Police,2017-01-17,15000.00,15000.00,"Recoupable Advance","Development Program",
2016-2017,P4,"Prodigals Productions Inc.",Vancouver,"British Columbia",Canada,Prodigals,English,Drama,2017-01-17,50000.00,50000.00,Investment,"Production Program",
2016-2017,P4,"Darius Films Inc.",Toronto,Ontario,Canada,"Portfolio 2016-2017 Darius Films Inc.",English,Drama,2017-01-18,40000.00,25000.00,"Recoupable Advance","Development Program",
2016-2017,P4,"Darius Films Inc.",Toronto,Ontario,Canada,"Portfolio 2016-2017 Darius Films Inc.",English,Horror,2017-01-18,55000.00,15000.00,"Recoupable Advance","Development Program",
2016-2017,P4,"Darius Films Inc.",Toronto,Ontario,Canada,"Portfolio 2016-2017 Darius Films Inc.",English,Comedy,2017-01-18,15000.00,15000.00,"Recoupable Advance","Development Program",
2016-2017,P4,"Les Films du Boulevard Inc.",Montreal,Quebec,Canada,"Portfolio 2016-2017 Films du Boulevard Inc.",French,Drama,2017-01-18,15000.00,15000.00,"Recoupable Advance","Development Program",
2016-2017,P4,"Films S�ville Inc. (Les) / Seville Pictures Inc.",Montreal,Quebec,Canada,"Juste la fin du monde",French,Drama,2017-01-19,100000.00,100000.00,Contribution,"International Marketing Program",
2016-2017,P4,"Funco Ltd.",Calgary,Alberta,Canada,"Portfolio 2016-2017 Funco Ltd.",English,Comedy,2017-01-24,15000.00,15000.00,"Recoupable Advance","Development Program",
2016-2017,P4,"Goodbye Productions Inc.",Vancouver,"British Columbia",Canada,"Portfolio 2016-2017 Goodbye Productions Inc.",English,Drama,2017-01-24,15000.00,15000.00,"Recoupable Advance","Development Program",
2016-2017,P4,"Media Connections Film Inc.","St. John's",Newfoundland/Labrad.,Canada,"Portfolio 2016-2017 Media Connections Film Inc.",English,Drama,2017-01-24,15000.00,15000.00,"Recoupable Advance","Development Program",
2016-2017,P4,"Willis Sweete Productions Inc.",Toronto,Ontario,Canada,"Portfolio 2016-2017 Willis Sweete Productions Inc.",English,"Historical Drama",2017-01-24,15000.00,15000.00,"Recoupable Advance","Development Program",
2016-2017,P4,"0250636 B.C. Ltd.",Vancouver,"British Columbia",Canada,"Portfolio 2016-2017 0250636 B.C. Ltd.",English,Drama,2017-01-25,15000.00,15000.00,"Recoupable Advance","Development Program",
2016-2017,P4,"Interstate 80 Entertainment Inc.",Calgary,Alberta,Canada,"Portfolio 2016-2017 Interstate 80 Entertainment Inc.",English,"Science fiction/Fantasy/Tale",2017-01-25,15000.00,15000.00,"Recoupable Advance","Development Program",
2016-2017,P4,"Manifold Pictures Inc.",Calgary,Alberta,Canada,"Portfolio 2016-2017 Manifold Pictures Inc.",English,"Historical Drama",2017-01-25,15000.00,15000.00,"Recoupable Advance","Development Program",
2016-2017,P4,"Pearl Street Films Ltd.",Hamilton,Ontario,Canada,"Portfolio 2016-2017 Pearl Street Films Ltd.",English,Drama,2017-01-25,15000.00,15000.00,"Recoupable Advance","Development Program",
2016-2017,P4,"White Pine Pictures Inc.",Toronto,Ontario,Canada,"All Governments Lie: Truth, Deception and the Spirit of I.F. Stone",English,Documentary,2017-01-26,37500.00,37500.00,"Recoupable Advance","Marketing Program",
2016-2017,P4,"Raven Banner Releasing Inc.",Toronto,Ontario,Canada,"Northlander (The)",English,"Science fiction/Fantasy/Tale",2017-01-26,47250.00,47250.00,"Recoupable Advance","Marketing Program",
2016-2017,P4,"A Film Monkey Production Inc.",Toronto,Ontario,Canada,"Portfolio 2016-2017 A Film Monkey Production Inc.",English,Mystery/Crime/Police,2017-01-26,15000.00,15000.00,"Recoupable Advance","Development Program",
2016-2017,P4,"A71 Productions Inc.",Toronto,Ontario,Canada,"Portfolio 2016-2017 A71 Productions Inc.",English,Thriller,2017-01-26,15000.00,15000.00,"Recoupable Advance","Development Program",
2016-2017,P4,"Captain Canuck Feature Film One Inc.",Toronto,Ontario,Canada,"Portfolio 2016-2017 Captain Canuck Feature Film One Inc.",English,Action/Adventure,2017-01-26,15000.00,15000.00,"Recoupable Advance","Development Program",
2016-2017,P4,"Six Island Productions Inc.",Toronto,Ontario,Canada,"Portfolio 2016-2017 Six Island Productions Inc.",English,Horror,2017-01-26,15000.00,15000.00,"Recoupable Advance","Development Program",
2016-2017,P4,"Viddywell Films Inc.",Toronto,Ontario,Canada,"Portfolio 2016-2017 Viddywell Films Inc.",English,Thriller,2017-01-26,15000.00,15000.00,"Recoupable Advance","Development Program",
2016-2017,P4,"Chantale Pag� consultation (L'Atelier de distribution)",Montreal,Quebec,Canada,"9 Le film",French,Comedy,2017-01-27,150000.00,150000.00,"Recoupable Advance","Marketing Program",
2016-2017,P4,"South Creek Pictures Inc.","Lions Bay","British Columbia",Canada,"Portfolio 2016-2017 South Creek Pictures Inc.",English,Action/Adventure,2017-01-27,15000.00,15000.00,"Recoupable Advance","Development Program",
2016-2017,P4,"Julijette Inc.",Winnipeg,Manitoba,Canada,"Portfolio 2016-2017 julijette inc.",English,Drama,2017-01-27,15000.00,15000.00,"Recoupable Advance","Development Program",
2016-2017,P4,"2033161 Ontario Limited d.b.a. Films We Like",Toronto,Ontario,Canada,WEIRDOS,English,Drama,2017-01-27,44223.00,44223.00,"Recoupable Advance","Marketing Program",
2016-2017,P4,"New Real Films Inc.",Toronto,Ontario,Canada,"Born To Be Blue",English,Drama,2017-01-30,25000.00,25000.00,Contribution,"International Marketing Program",
2016-2017,P4,"Raven Banner Releasing Inc.",Toronto,Ontario,Canada,Destroyer,English,Drama,2017-01-30,95925.00,95925.00,"Recoupable Advance","Marketing Program",
2016-2017,P4,"Isuma Distribution International Ltd.",Montreal,Quebec,Canada,"Maliglutit (Searchers)",English,Drama,2017-01-30,199202.00,37390.00,"Recoupable Advance","Marketing Program","Amended contract signed  30-SEP-16"
2016-2017,P4,"Mongrel Media Inc.",Toronto,Ontario,Canada,Maudie,English,Drama,2017-01-30,1105725.00,1105725.00,"Recoupable Advance","Marketing Program",
2016-2017,P4,"Aiken Heart Films Inc.",Toronto,Ontario,Canada,"Portfolio 2016-2017 Aiken Heart Films Inc.",English,Drama,2017-01-30,15000.00,15000.00,"Recoupable Advance","Development Program",
2016-2017,P4,"Fella Films Inc. ",Kanata,Ontario,Canada,"Portfolio 2016-2017 Fella Films Inc.",English,Comedy,2017-01-30,15000.00,15000.00,"Recoupable Advance","Development Program",
2016-2017,P4,"Hoggwild Films Inc.",Victoria,"British Columbia",Canada,"Portfolio 2016-2017 Hoggwild Films Inc.",English,Drama,2017-01-30,15000.00,15000.00,"Recoupable Advance","Development Program",
2016-2017,P4,"Elevation Pictures Corp.",Toronto,Ontario,Canada,Zoom,English,Drama,2017-01-30,76602.00,76602.00,"Recoupable Advance","Marketing Program",
2016-2017,P4,"Sienna Films Inc.",Toronto,Ontario,Canada,"Portfolio 2016-2017 Sienna Films Inc.",English,Drama,2017-01-31,15000.00,15000.00,"Recoupable Advance","Development Program",
2016-2017,P4,"Sienna Films Inc.",Toronto,Ontario,Canada,"Portfolio 2016-2017 Sienna Films Inc.",English,Drama,2017-01-31,30000.00,15000.00,"Recoupable Advance","Development Program",
2016-2017,P4,"Sienna Films Inc.",Toronto,Ontario,Canada,"Portfolio 2016-2017 Sienna Films Inc.",English,Drama,2017-01-31,105000.00,75000.00,"Recoupable Advance","Development Program",
2016-2017,P4,"Yer Dead Productions Inc.",Halifax,"Nova Scotia",Canada,"Portfolio 2016-2017 Yer Dead Productions Inc.",English,Thriller,2017-01-31,50000.00,35000.00,"Recoupable Advance","Development Program",
2016-2017,P4,"Yer Dead Productions Inc.",Halifax,"Nova Scotia",Canada,"Portfolio 2016-2017 Yer Dead Productions Inc.",English,Action/Adventure,2017-01-31,15000.00,15000.00,"Recoupable Advance","Development Program",
2016-2017,P4,"9730788 Canada Inc.",Montreal,Quebec,Canada,"Mr. Roach",French,Drama,2017-02-01,1140000.00,1140000.00,Investment,"Production Program",
2016-2017,P4,"Fluent Films Inc.",Montreal,Quebec,Canada,"Portfolio 2016-2017 Fluent Films Inc.",English,Drama,2017-02-01,15000.00,15000.00,"Recoupable Advance","Development Program",
2016-2017,P4,"Raven Banner Releasing Inc.",Toronto,Ontario,Canada,"Stegman Is Dead",English,Comedy,2017-02-01,74250.00,74250.00,"Recoupable Advance","Marketing Program",
2016-2017,P4,"Productions Ajoup� Lt�e (Les)",Longueuil,Quebec,Canada,"Portfolio 2016-2017 Productions Ajoup� Lt�e (Les)",English,Drama,2017-02-02,15000.00,15000.00,"Recoupable Advance","Development Program",
2016-2017,P4,"Zoofilms Inc.",Mansonville,Quebec,Canada,"Portfolio 2016-2017 Zoofilms Inc.",French,Musical,2017-02-03,15000.00,15000.00,"Recoupable Advance","Development Program",
2016-2017,P4,"Montefiore Films Inc.",Sudbury,Ontario,Canada,"Portfolio 2016-2017 Montefiore Films Inc.",English,Thriller,2017-02-06,15000.00,15000.00,"Recoupable Advance","Development Program",
2016-2017,P4,"Neophyte Productions Inc.",Toronto,Ontario,Canada,"Portfolio 2016-2017 Neophyte Productions Inc.",English,Comedy,2017-02-06,15000.00,15000.00,"Recoupable Advance","Development Program",
2016-2017,P4,"TimeLapse Pictures Productions Inc.",Toronto,Ontario,Canada,"Portfolio 2016-2017 TimeLapse Pictures Productions Inc.",English,"Science fiction/Fantasy/Tale",2017-02-06,15000.00,15000.00,"Recoupable Advance","Development Program",
2016-2017,P4,"YN Films Inc.",Toronto,Ontario,Canada,"Portfolio 2016-2017 YN Films Inc.",English,Comedy,2017-02-06,15000.00,15000.00,"Recoupable Advance","Development Program",
2016-2017,P4,"Farpoint Films Inc.",Winnipeg,Manitoba,Canada,"Portfolio 2016-2017 Farpoint Films Inc.",English,Thriller,2017-02-07,30000.00,15000.00,"Recoupable Advance","Development Program",
2016-2017,P4,"Farpoint Films Inc.",Winnipeg,Manitoba,Canada,"Portfolio 2016-2017 Farpoint Films Inc.",English,Horror,2017-02-07,15000.00,15000.00,"Recoupable Advance","Development Program",
2016-2017,P4,"Resonance Films Inc. ",Vancouver,"British Columbia",Canada,"Portfolio 2016-2017 Resonance Films Inc.",English,Comedy,2017-02-07,15000.00,15000.00,"Recoupable Advance","Development Program",
2016-2017,P4,"Screen Siren Pictures Inc.",Vancouver,"British Columbia",Canada,"Portfolio 2016-2017 Screen Siren Pictures Inc.",English,"Romantic Comedy",2017-02-07,15000.00,15000.00,"Recoupable Advance","Development Program",
2016-2017,P4,"Industry Pictures Inc.",Toronto,Ontario,Canada,"Portfolio 2016-2017 Industry Pictures Inc.",English,Drama,2017-02-09,15000.00,15000.00,"Recoupable Advance","Development Program",
2016-2017,P4,"Funfilm Distribution Inc.",Montreal,Quebec,Canada,"Maudite poutine",French,Drama,2017-02-10,28000.00,28000.00,"Recoupable Advance","Marketing Program",
2016-2017,P4,"January Films Ltd.",Toronto,Ontario,Canada,"Portfolio 2016-2017 January Films Ltd. - 2",English,"Historical Drama",2017-02-10,75000.00,75000.00,"Recoupable Advance","Development Program",
2016-2017,P4,"Clique Pictures Inc.",Toronto,Ontario,Canada,"Portfolio 2016-2017 Clique Pictures Inc.",English,"Science fiction/Fantasy/Tale",2017-02-13,15000.00,15000.00,"Recoupable Advance","Development Program",
2016-2017,P4,"Gearshift Films Inc.",Toronto,Ontario,Canada,"Portfolio 2016-2017 Gearshift Films Inc.",English,Drama,2017-02-13,15000.00,15000.00,"Recoupable Advance","Development Program",
2016-2017,P4,"Item 7 Copro inc",Montreal,Quebec,Canada,"Fils de Jean (Le)",French,Drama,2017-02-14,2968.00,2968.00,Contribution,"International Marketing Program",
2016-2017,P4,"Meditation Park Film Ltd. ",Vancouver,"British Columbia",Canada,"Meditation Park",English,Drama,2017-02-15,76290.00,76290.00,"Recoupable Advance","Production Program",
2016-2017,P4,"Elevation Pictures Corp.",Toronto,Ontario,Canada,"Into The Forest",English,Drama,2017-02-16,232136.00,232136.00,"Recoupable Advance","Marketing Program",
2016-2017,P4,"Films S�ville Inc. (Les) / Seville Pictures Inc.",Montreal,Quebec,Canada,"Juste la fin du monde",French,Drama,2017-02-16,25000.00,25000.00,Contribution,"International Marketing Program",
2016-2017,P4,"Brightlight Pictures Development Inc.",Burnaby,"British Columbia",Canada,"Portfolio 2016-2017 Brightlight Pictures Development Inc.",English,Drama,2017-02-16,15000.00,15000.00,"Recoupable Advance","Development Program",
2016-2017,P4,"Funfilm Distribution Inc.",Montreal,Quebec,Canada,"Cyclotron (Le)",French,"Historical Drama",2017-02-17,32000.00,32000.00,"Recoupable Advance","Marketing Program",
2016-2017,P4,"Films S�ville Inc. (Les) / Seville Pictures Inc.",Montreal,Quebec,Canada,NELLY,French,Drama,2017-02-17,203546.00,203546.00,"Recoupable Advance","Marketing Program",
2016-2017,P4,"H20 Motion Pictures Inc.",Toronto,Ontario,Canada,"Portfolio 2016-2017 H20 Motion Pictures Inc.",English,Drama,2017-02-17,15000.00,15000.00,"Recoupable Advance","Development Program",
2016-2017,P4,"Kunuk Cohn Productions Inc.",Montreal,Quebec,Canada,"Portfolio 2016-2017 Kunuk Cohn Productions Inc.",English,"Historical Drama",2017-02-17,30000.00,30000.00,"Recoupable Advance","Development Program",
2016-2017,P4,"Possibles M�dia inc.",Montreal,Quebec,Canada,"Portfolio 2016-2017 Possibles M�dia inc.",French,Drama,2017-02-17,45000.00,15000.00,"Recoupable Advance","Development Program",
2016-2017,P4,"Possibles M�dia inc.",Montreal,Quebec,Canada,"Portfolio 2016-2017 Possibles M�dia inc.",English,Drama,2017-02-17,15000.00,15000.00,"Recoupable Advance","Development Program",
2016-2017,P4,"Possibles M�dia inc.",Montreal,Quebec,Canada,"Portfolio 2016-2017 Possibles M�dia inc.",English,Drama,2017-02-17,30000.00,15000.00,"Recoupable Advance","Development Program",
2016-2017,P4,"Realm Productions & Advertising Inc.","St. John","New Brunswick",Canada,"Portfolio 2016-2017 Realm Productions & Advertising Inc.",English,Horror,2017-02-17,15000.00,15000.00,"Recoupable Advance","Development Program",
2016-2017,P4,"Chantale Pag� consultation (L'Atelier de distribution)",Montreal,Quebec,Canada,"�rotisme et le vieil �ge (L')",French,Documentary,2017-02-17,25000.00,25000.00,"Recoupable Advance","Marketing Program",
2016-2017,P4,"9348-4566 Qu�bec Inc.",Montreal,Quebec,Canada,"Junior Majeur",French,Drama,2017-02-20,2500000.00,2500000.00,Investment,"Production Program",
2016-2017,P4,"Meditation Park Film Ltd. ",Vancouver,"British Columbia",Canada,"Meditation Park",English,Drama,2017-02-21,0.00,76290.00,"Recoupable Advance","Production Program","Amended contract signed  15-FEB-17"
2016-2017,P4,"Buffalo Gal Pictures Inc.",Winnipeg,Manitoba,Canada,"Portfolio 2016-2017 Buffalo Gal Pictures Inc.",English,"Historical Drama",2017-02-21,46500.00,31500.00,"Recoupable Advance","Development Program",
2016-2017,P4,"Buffalo Gal Pictures Inc.",Winnipeg,Manitoba,Canada,"Portfolio 2016-2017 Buffalo Gal Pictures Inc.",English,Drama,2017-02-21,15000.00,15000.00,"Recoupable Advance","Development Program",
2016-2017,P4,"Buffalo Gal Pictures Inc.",Winnipeg,Manitoba,Canada,"Portfolio 2016-2017 Buffalo Gal Pictures Inc.",English,"Historical Drama",2017-02-21,80000.00,33500.00,"Recoupable Advance","Development Program",
2016-2017,P4,"Buffalo Gal Pictures Inc.",Winnipeg,Manitoba,Canada,"Portfolio 2016-2017 Buffalo Gal Pictures Inc.",English,"Science fiction/Fantasy/Tale",2017-02-21,95000.00,15000.00,"Recoupable Advance","Development Program",
2016-2017,P4,"Cineast Screen Development Limited",Halifax,"Nova Scotia",Canada,"Portfolio 2016-2017 Cineast Screen Development Limited",English,Thriller,2017-02-21,15000.00,15000.00,"Recoupable Advance","Development Program",
2016-2017,P4,"Devonshire Productions Inc.",Toronto,Ontario,Canada,"Portfolio 2016-2017 Devonshire Productions Inc.",English,Drama,2017-02-21,15000.00,15000.00,"Recoupable Advance","Development Program",
2016-2017,P4,"Snitch Pictures Inc.",Toronto,Ontario,Canada,"Portfolio 2016-2017 Snitch Pictures Inc.",English,Comedy,2017-02-21,15000.00,15000.00,"Recoupable Advance","Development Program",
2016-2017,P4,"Snitch Pictures Inc.",Toronto,Ontario,Canada,"Portfolio 2016-2017 Snitch Pictures Inc.",English,Horror,2017-02-21,30000.00,15000.00,"Recoupable Advance","Development Program",
2016-2017,P4,"Angelique's Isle Productions Inc.",Mississauga,Ontario,Canada,"Angelique's Isle  ",English,"Historical Drama",2017-02-22,600000.00,600000.00,Investment,"Production Program",
2016-2017,P4,"Elevation Pictures Corp.",Toronto,Ontario,Canada,"Below Her Mouth",English,Drama,2017-02-22,367599.00,367599.00,"Recoupable Advance","Marketing Program",
2016-2017,P4,"Meditation Park Film Ltd. ",Vancouver,"British Columbia",Canada,"Meditation Park",English,Drama,2017-02-22,825000.00,825000.00,Investment,"Production Program",
2016-2017,P4,"BD Animation Inc.",Winnipeg,Manitoba,Canada,Ozzy,English,Action/Adventure,2017-02-23,400000.00,400000.00,Investment,"Production Program",
2016-2017,P4,"Elevation Pictures Corp.",Toronto,Ontario,Canada,"Closet Monster",English,Drama,2017-02-24,203463.00,214900.00,"Recoupable Advance","Marketing Program","Amended contract signed  04-OCT-16"
2016-2017,P4,"Picture Plant Limited",Lunenburg,"Nova Scotia",Canada,"Portfolio 2016-2017 Picture Plant Limited",English,"Historical Drama",2017-02-24,15000.00,15000.00,"Recoupable Advance","Development Program",
2016-2017,P4,"Elevation Pictures Corp.",Toronto,Ontario,Canada,River,English,Thriller,2017-02-24,97874.00,97874.00,"Recoupable Advance","Marketing Program",
2016-2017,P4,"Momentum Pictures (Canada), Inc.",Toronto,Ontario,Canada,"Milton's Secret",English,Drama,2017-02-27,71421.00,71421.00,"Recoupable Advance","Marketing Program",
2016-2017,P4,"Axia Films inc.",Montreal,Quebec,Canada,"Louise en hiver",French,Drama,2017-02-28,33912.00,33912.00,"Recoupable Advance","Marketing Program",
2016-2017,P4,"Darius - Padre Productions Inc.",Toronto,Ontario,Canada,"Padre (The)",English,Drama,2017-03-01,1500000.00,1500000.00,Investment,"Production Program",
2016-2017,P4,"A71 Entertainment Inc.",Toronto,Ontario,Canada,"Skyjacker's Tale (The)",English,Documentary,2017-03-01,37000.00,37000.00,"Recoupable Advance","Marketing Program",
2016-2017,P4,"Mongrel Media Inc.",Toronto,Ontario,Canada,"Window Horses",English,Drama,2017-03-01,143625.00,143625.00,"Recoupable Advance","Marketing Program",
2016-2017,P4,"Films S�ville Inc. (Les) / Seville Pictures Inc.",Montreal,Quebec,Canada,"Fils de Jean (Le)",French,Drama,2017-03-03,47033.00,47033.00,"Recoupable Advance","Marketing Program",
2016-2017,P4,"Invisible Light Productions Manitoba Inc.",Winnipeg,Manitoba,Canada,"Into Invisible Light",English,Drama,2017-03-03,300000.00,300000.00,Investment,"Production Program",
2016-2017,P4,"Darius - Padre Productions Inc.",Toronto,Ontario,Canada,"Padre (The)",English,Drama,2017-03-03,0.00,119280.00,"Recoupable Advance","Production Program","Amended contract signed  16-NOV-16"
2016-2017,P4,"Films S�ville Inc. (Les) / Seville Pictures Inc.",Montreal,Quebec,Canada,"P�re fils th�rapie",French,Comedy,2017-03-03,43535.00,43535.00,"Recoupable Advance","Marketing Program",
2016-2017,P4,"Raven Banner Releasing Inc.",Toronto,Ontario,Canada,"Considering Love and Other Magic",English,Drama,2017-03-07,101700.00,101700.00,"Recoupable Advance","Marketing Program",
2016-2017,P4,"Karma Film Inc.",Saskatoon,Saskatchewan,Canada,"Portfolio 2016-2017 Karma Film Inc.",English,Drama,2017-03-08,15000.00,15000.00,"Recoupable Advance","Development Program",
2016-2017,P4,"Bad Astronaut Inc.",Halifax,"Nova Scotia",Canada,"Hopeless (Romantic)",English,"Romantic Comedy",2017-03-09,450000.00,450000.00,Investment,"Production Program",
2016-2017,P4,"Alyson Richards Productions Inc.",Hamilton,Ontario,Canada,"Portfolio 2016-2017 Alyson Richards Productions Inc.",English,"Romantic Comedy",2017-03-09,15000.00,15000.00,"Recoupable Advance","Development Program",
2016-2017,P4,"Voyelles Plages Inc.",Montreal,Quebec,Canada,"TWENTIETH CENTURY (THE)",English,"Historical Drama",2017-03-09,500000.00,500000.00,Investment,"Production Program",
2016-2017,P4," SPF (TBS) Productions Inc.",Toronto,Ontario,Canada,"Through Black Spruce",English,Drama,2017-03-09,2800000.00,2800000.00,Investment,"Production Program",
2016-2017,P4,"Raven Banner Releasing Inc.",Toronto,Ontario,Canada,"Todd & The Book of Pure Evil: The End of The End",English,Comedy,2017-03-09,19350.00,19350.00,"Recoupable Advance","Marketing Program",
2016-2017,P4,"White Pine Pictures Inc.",Toronto,Ontario,Canada,"When the Universe Sings: The Spiritual Journey of Lawren Harris",English,Documentary,2017-03-09,28050.00,28050.00,"Recoupable Advance","Marketing Program",
2016-2017,P4,"Bah Humbug Films Inc.",Toronto,Ontario,Canada,"Man Who Invented Christmas (The)",English,"Historical Drama",2017-03-10,1225000.00,1225000.00,Investment,"Production Program",
2016-2017,P4,"Rhombus Media Inc.",Toronto,Ontario,Canada,"Man Who Invented Christmas (The)",English,"Historical Drama",2017-03-10,0.00,230000.00,"Recoupable Advance","Production Program","Amended contract signed  06-DEC-16"
2016-2017,P4,"Never Saw It Coming Productions Inc.",Toronto,Ontario,Canada,"Never Saw It Coming",English,Thriller,2017-03-10,350000.00,350000.00,Investment,"Production Program",
2016-2017,P4,"Jobro Productions Inc.",Toronto,Ontario,Canada,"Portfolio 2016-2017 Jobro Productions Inc.",English,Mystery/Crime/Police,2017-03-13,15000.00,15000.00,"Recoupable Advance","Development Program",
2016-2017,P4,"Mongrel Media Inc.",Toronto,Ontario,Canada,Unless,English,Drama,2017-03-14,76725.00,76725.00,"Recoupable Advance","Marketing Program",
2016-2017,P4,"9152-3068 Qu�bec Inc. ",Montreal,Quebec,Canada,"Jardinier (Le) / The Gardener",French,Documentary,2017-03-15,12312.00,12312.00,"Recoupable Advance","Marketing Program",
2016-2017,P4,"Story Engine Pictures Inc.",Halifax,"Nova Scotia",Canada,"Portfolio 2016-2017 Story Engine Pictures Inc.",English,Drama,2017-03-15,30000.00,15000.00,"Recoupable Advance","Development Program",
2016-2017,P4,"Story Engine Pictures Inc.",Halifax,"Nova Scotia",Canada,"Portfolio 2016-2017 Story Engine Pictures Inc.",English,Comedy,2017-03-15,15000.00,15000.00,"Recoupable Advance","Development Program",
2016-2017,P4,"Breadwinner Canada Inc.",Toronto,Ontario,Canada,"Breadwinner (The)",English,Drama,2017-03-16,1800000.00,1650000.00,Investment,"Production Program","Amended contract signed  26-FEB-16"
2016-2017,P4,"Devout Productions Ltd.",Victoria,"British Columbia",Canada,"Devout (The)",English,Drama,2017-03-16,30250.00,30250.00,"Recoupable Advance","Marketing Program",
2016-2017,P4,"Films S�ville Inc. (Les) / Seville Pictures Inc.",Montreal,Quebec,Canada,IQALUIT,French,Drama,2017-03-16,77339.00,77339.00,"Recoupable Advance","Marketing Program",
2016-2017,P4,"Les Films Rivi�re inc.",Montreal,Quebec,Canada,"Restless River",English,Drama,2017-03-20,750000.00,750000.00,"Investment, Recoupable Advance","Production Program",
2016-2017,P4,"Plausible Communications Corporation d/b/a Prospero Pictures",Toronto,Ontario,Canada,"Portfolio 2014-2015 Plausible Communications Corporation",English,"Science fiction/Fantasy/Tale",2017-03-22,176725.00,24640.00,"Recoupable Advance","Development Program","Amended contract signed  02-MAR-15"
2016-2017,P4,"Films S�ville Inc. (Les) / Seville Pictures Inc.",Montreal,Quebec,Canada,"Ballerina ",English,Drama,2017-03-23,1222370.00,1222370.00,"Recoupable Advance","Marketing Program",
2016-2017,P4,"Films Christal, s.e.c.(Les), agissant par l'interm�diaire de son commandit�, Les Films Christal Inc",Montreal,Quebec,Canada,"C'est le coeur qui meurt en dernier",French,Drama,2017-03-23,169046.00,169046.00,"Recoupable Advance","Marketing Program",
2016-2017,P4,"Terrifying Movie Inc.",Halifax,"Nova Scotia",Canada,"Halloween Party",English,Horror,2017-03-23,500000.00,450000.00,Investment,"Production Program","Amended contract signed  25-FEB-16"
2016-2017,P4,"Mongrel Media Inc.",Toronto,Ontario,Canada,"Mostly Sunny",English,Documentary,2017-03-23,195000.00,195000.00,"Recoupable Advance","Marketing Program",
2016-2017,P4,"The New Romantic Inc.",Vancouver,"British Columbia",Canada,"The New Romantic (formerly The Undergraduate)",English,Comedy,2017-03-23,350000.00,350000.00,Investment,"Production Program",
2016-2017,P4,"Films S�ville Inc. (Les) / Seville Pictures Inc.",Montreal,Quebec,Canada,"�a sent la coupe",French,Drama,2017-03-23,240867.00,240867.00,"Recoupable Advance","Marketing Program",
2016-2017,P4,"A71 Entertainment Inc.",Toronto,Ontario,Canada,Chokeslam,English,"Romantic Comedy",2017-03-24,82000.00,82000.00,"Recoupable Advance","Marketing Program",
2016-2017,P4,"1 Degree Pictures Inc.",Toronto,Ontario,Canada,"Portfolio 2016-2017 1 Degree Pictures Inc.",English,"Romantic Comedy",2017-03-24,15000.00,15000.00,"Recoupable Advance","Development Program",
2016-2017,P4,"SuperGrid Film Productions Inc.",Regina,Saskatchewan,Canada,Supergrid,English,Action/Adventure,2017-03-24,350000.00,350000.00,Investment,"Production Program",
2016-2017,P4,"Le Film Happy Face Inc.",Montreal,Quebec,Canada,"HAPPY FACE",English,Drama,2017-03-27,650000.00,650000.00,"Investment, Recoupable Advance","Production Program",
2016-2017,P4,"Artesian Films Inc.",Montreal,Quebec,Canada,"Putti-sur la route de J�rusalem",French,Documentary,2017-03-28,15000.00,15000.00,"Recoupable Advance",Mini-treaties,
2016-2017,P4,"Productions Dixie Inc. (les)",Montreal,Quebec,Canada,"Out Late",English,Comedy,2017-03-29,1500000.00,1500000.00,Investment,"Production Program",
2016-2017,P4,"Plausible Communications Corporation d/b/a Prospero Pictures",Toronto,Ontario,Canada,"Portfolio 2016-2017 Plausible Communications Corporation",English,Drama,2017-03-29,61235.00,33518.00,"Recoupable Advance","Development Program",
2016-2017,P4,"Plausible Communications Corporation d/b/a Prospero Pictures",Toronto,Ontario,Canada,"Portfolio 2016-2017 Plausible Communications Corporation",English,Drama,2017-03-29,105527.00,44292.00,"Recoupable Advance","Development Program",
2016-2017,P4,"Plausible Communications Corporation d/b/a Prospero Pictures",Toronto,Ontario,Canada,"Portfolio 2016-2017 Plausible Communications Corporation",English,Comedy,2017-03-29,27717.00,27717.00,"Recoupable Advance","Development Program",
2016-2017,P4,"Plausible Communications Corporation d/b/a Prospero Pictures",Toronto,Ontario,Canada,"Portfolio 2016-2017 Plausible Communications Corporation",English,"Historical Drama",2017-03-29,199043.00,42820.00,"Recoupable Advance","Development Program",
2016-2017,P4,"Plausible Communications Corporation d/b/a Prospero Pictures",Toronto,Ontario,Canada,"Portfolio 2016-2017 Plausible Communications Corporation",English,Drama,2017-03-29,156223.00,50696.00,"Recoupable Advance","Development Program",
2016-2017,P4,"Sorry For Your Loss Productions Inc.",Winnipeg,Manitoba,Canada,"Sorry For Your Loss",English,Comedy,2017-03-29,350000.00,350000.00,"Investment, Recoupable Advance","Production Program",
2016-2017,P4,"Midnight Lamp Films Inc.",Toronto,Ontario,Canada,"Stairs (The)",English,Documentary,2017-03-29,21432.00,21432.00,"Recoupable Advance","Marketing Program",
2016-2017,P4,"Gandy's Rock Productions Inc.",Vancouver,"British Columbia",Canada,"Anthem of a Reluctant Prophet",English,Drama,2017-03-30,500000.00,500000.00,Investment,"Production Program",
2016-2017,P4,"Triple M Productions Inc.","St. John's",Newfoundland/Labrad.,Canada,"Audience of Chairs (An)",English,Drama,2017-03-30,750000.00,750000.00,Investment,"Production Program",
2016-2017,P4,"102017920 Saskatchewan Inc.",Saskatoon,Saskatchewan,Canada,Brotherhood,English,"Historical Drama",2017-03-30,500000.00,500000.00,Investment,"Production Program",
2016-2017,P4,"Pizza Lovers Productions Ltd.",Oakville,Ontario,Canada,"Little Italy",English,"Romantic Comedy",2017-03-30,3970000.00,3970000.00,Investment,"Production Program",
2016-2017,P4,"Steady Films Inc.",Vancouver,"British Columbia",Canada,"Never Steady, Never Still",English,Drama,2017-03-30,330000.00,250000.00,Investment,"Production Program","Amended contract signed  27-JAN-16"
2016-2017,P4,"Loud Baby Productions Inc.",Halifax,"Nova Scotia",Canada,"Perfume War",English,Documentary,2017-03-30,41395.00,41395.00,"Recoupable Advance","Marketing Program",
2016-2017,P4,"Weirdos The Film Inc.",Halifax,"Nova Scotia",Canada,WEIRDOS,English,Drama,2017-03-30,738500.00,450000.00,Investment,"Production Program","Amended contract signed  15-SEP-15"
2016-2017,P4,"Dead Shack Productions Inc.",Vancouver,"British Columbia",Canada,"Dead Shack",English,Horror,2017-03-31,350000.00,250000.00,Investment,"Production Program","Amended contract signed  29-NOV-16"
2016-2017,P4,"Forlorn Hope Productions Inc.",Richmond,"British Columbia",Canada,Juggernaut,English,Mystery/Crime/Police,2017-03-31,300000.00,250000.00,Investment,"Production Program","Amended contract signed  08-MAR-16"
2016-2017,P4,"Prix coll�gial du cin�ma qu�b�cois",Montreal,Quebec,Canada,"Prix coll�gial du cin�ma qu�b�cois",,,2017-01-05,15000.00,15000.00,Contribution,"Promotion Program",
2016-2017,P4,"Zocha Production Inc.",Montreal,Quebec,Canada,"Nuits feront �cho (Mes)",French,Documentary,2017-01-05,5700.00,5700.00,Contribution,"International Marketing Program",
2016-2017,P4,"Holdfast Pictures Inc.",Halifax,"Nova Scotia",Canada,WEIRDOS,English,,2017-01-05,24700.00,24700.00,Contribution,"International Marketing Program",
2016-2017,P4,"Alberta Media Production Industries  Association (AMPIA)",Edmonton,Alberta,Canada,"AMPIA Professional Development Initiatives ",,,2017-01-06,20000.00,20000.00,Contribution,"Promotion Program",
2016-2017,P4,"Reel to Real: A Celebration Of Moving Images For Youth Society",Vancouver,"British Columbia",Canada,"Reel 2 Real International Film Festival for Youth",,,2017-01-06,7528.00,7528.00,Contribution,"Promotion Program",
2016-2017,P4,"Vice Productions (VIP Canada) Inc.",Toronto,Ontario,Canada,Rise,English,Documentary,2017-01-07,25000.00,25000.00,Contribution,"International Marketing Program",
2016-2017,P4,"Global Visions Festival Society",Edmonton,Alberta,Canada,Northwestfest,,,2017-01-09,5000.00,5000.00,Contribution,"Promotion Program",
2016-2017,P4,"Vues d'Afrique",Montreal,Quebec,Canada,"Festival international de cin�ma Vues d'Afrique",,,2017-01-10,17859.00,17859.00,Contribution,"Promotion Program",
2016-2017,P4,"Festival International de Musique POP Montr�al",Montreal,Quebec,Canada,"POP Montreal",,,2017-01-12,15000.00,15000.00,Contribution,"Promotion Program",
2016-2017,P4,"Northern Visions Independent Video & Film Association",Toronto,Ontario,Canada,"Images Festival",,,2017-01-12,22784.00,22784.00,Contribution,"Promotion Program",
2016-2017,P4,"1880609 Ontario Inc.",Toronto,Ontario,Canada,"5 Films About Technology",English,,2017-01-12,2200.00,2200.00,Contribution,"International Marketing Program",
2016-2017,P4,"Charles Taylor Theatre & Media Arts Association",Dartmouth,"Nova Scotia",Canada,"The Emerging Lens Independent Cultural Film Festival",,,2017-01-13,2500.00,2500.00,Contribution,"Promotion Program",
2016-2017,P4,"2033161 Ontario Limited",Toronto,Ontario,Canada,"""4K Restorations of """"Hockey Night"""" and """"Roadkill""""""",,,2017-01-13,38600.00,38600.00,Contribution,"Promotion Program",
2016-2017,P4,"Independent Web series Creators of Canada",Toronto,Ontario,Canada,"T.O. Webfest 2017",,,2017-01-16,5000.00,5000.00,Contribution,"Promotion Program",
2016-2017,P4,"Cin� Qu�bec",Boucherville,Quebec,Canada,"Cin� Qu�bec",,,2017-01-16,36048.00,36048.00,Contribution,"Promotion Program",
2016-2017,P4,"Storyline Entertainment Inc.",Toronto,Ontario,Canada,"League of Exotique Dancers",English,Documentary,2017-01-17,1500.00,1500.00,Contribution,"International Marketing Program",
2016-2017,P4,"Les Films du Tricycle Inc.","Les Bergeronnes",Quebec,Canada,"Combat au bout de la nuit",French,Documentary,2017-01-17,23700.00,23700.00,Contribution,"International Marketing Program",
2016-2017,P4,"Storyline Fx Inc.",Winnipeg,Manitoba,Canada,"Freeze Frame Int'l Film Festival For Kids of All",,,2017-01-17,9345.00,9345.00,Contribution,"Promotion Program",
2016-2017,P4,"Highway 401 Films Inc.",Toronto,Ontario,Canada,"Wexford Plaza",English,,2017-01-18,1500.00,1500.00,Contribution,"International Marketing Program",
2016-2017,P4,"The Documentary Media Society",Vancouver,"British Columbia",Canada,"DOXA Documentary Film Festival ",,,2017-01-19,10815.00,10815.00,Contribution,"Promotion Program",
2016-2017,P4,"Woods Entertainment Canada Inc.",Toronto,Ontario,Canada,"1 Night on Panther Mountain",English,Comedy,2017-01-24,1500.00,1500.00,Contribution,"International Marketing Program",
2016-2017,P4,"SC Productions Inc.",Toronto,Ontario,Canada,"Ash (The)",English,,2017-01-24,1500.00,1500.00,Contribution,"International Marketing Program",
2016-2017,P4,"Triplex Films Inc.",Montreal,Quebec,Canada,"Theater of Life",English,Documentary,2017-01-24,1000.00,1000.00,Contribution,"International Marketing Program",
2016-2017,P4,"Colonelle films inc.",Montreal,Quebec,Canada,"The Catch",English,,2017-01-26,1500.00,1500.00,Contribution,"International Marketing Program",
2016-2017,P4,"Colonelle films inc.",Montreal,Quebec,Canada,"Break The Fall",English,,2017-01-27,1500.00,1500.00,Contribution,"International Marketing Program",
2016-2017,P4,"Buck Productions Inc.",Toronto,Ontario,Canada,"Competition (The)",English,,2017-01-30,1500.00,1500.00,Contribution,"International Marketing Program",
2016-2017,P4,"Y'est o� le paradis? inc.",Montreal,Quebec,Canada,"Y'est o� le paradis ? (AKA Michel et Sylvie)",French,,2017-01-30,5000.00,5000.00,Contribution,"International Marketing Program",
2016-2017,P4,"Corporation Wapikoni Mobile",Montreal,Quebec,Canada,"My Fathers Tools (Les outils de mon p�re)",English,Documentary,2017-02-02,1500.00,1500.00,Contribution,"International Marketing Program",
2016-2017,P4,"Rezolution Pictures International Inc.",Outremont,Quebec,Canada,"Rumble: The Indians Who Rocked The World",English,Documentary,2017-02-03,24000.00,24000.00,Contribution,"International Marketing Program",
2016-2017,P4,"National Screen Institute - Canada",Winnipeg,Manitoba,Canada,"NSI Training Programs",,,2017-02-06,229500.00,229500.00,Contribution,"Promotion Program",
2016-2017,P4,"Toronto International Film Festival Inc.",Toronto,Ontario,Canada,"TIFF's Canada On Screen",,,2017-02-09,135000.00,135000.00,Contribution,"Promotion Program",
2016-2017,P4,"ON SCREEN MANITOBA INCORPORATED",Winnipeg,Manitoba,Canada,"All Access ",,,2017-02-09,17000.00,17000.00,Contribution,"Promotion Program",
2016-2017,P4,"Winnipeg Film Group Inc.",Winnipeg,Manitoba,Canada,"Gimme Some Truth",,,2017-02-13,3500.00,3500.00,Contribution,"Promotion Program",
2016-2017,P4,"Eagle Vision Inc.",Winnipeg,Manitoba,Canada,Lovesick,English,"Romantic Comedy",2017-02-21,5000.00,5000.00,Contribution,"International Marketing Program",
2016-2017,P4,"Canadian Film in the Schools",Toronto,Ontario,Canada,"Cdn Film in the Schools & National Canadian FIlm Day (NCFD)",,,2017-02-27,49113.00,49113.00,Contribution,"Promotion Program",
2016-2017,P4,"No Water Studios",Montreal,Quebec,Canada,"John's Bicycle",English,,2017-02-27,1500.00,1500.00,Contribution,"International Marketing Program",
2016-2017,P4,"Happiness Distribution Inc.",Paris,,France,"Mauvaises herbes (Les)",French,Comedy,2017-02-27,28000.00,28000.00,Contribution,"Export Assistance Program",
2016-2017,P4,"Eye Steel Film Distribution inc.",Montreal,Quebec,Canada,"Tokyo Idols",English,Documentary,2017-03-01,15700.00,15700.00,Contribution,"International Marketing Program",
2016-2017,P4,"ARP Selection",Paris,,France,1:54,French,,2017-03-02,30000.00,30000.00,Contribution,"Export Assistance Program",
2016-2017,P4,"Namaste Film Productions Inc. - The Ridge Line Film",Canmore,Alberta,Canada,"Ridge Line (The)",English,"Historical Drama",2017-03-03,1500.00,1500.00,Contribution,"International Marketing Program",
2016-2017,P4,"Caravane Films Productions",Chicoutimi,Quebec,Canada,"Session de pitch micro budget T�l�film au Festival REGARD",,,2017-03-14,25000.00,25000.00,Contribution,"Promotion Program",
2016-2017,P4,"Academy Of Canadian Cinema And Television - Acad�mie Canadienne du Cin�ma et de la T�l�vision",Toronto,Ontario,Canada,"Canadian Screen Awards Members Lounge",,,2017-03-16,37500.00,37500.00,Contribution,"Promotion Program",
2016-2017,P4,"Accompany Productions Inc.",Yellowknife,"North W. Territories",Canada,"Sun At Midnight (The)",English,Action/Adventure,2017-03-20,1500.00,1500.00,Contribution,"International Marketing Program",
2016-2017,P4,"Compass Productions Inc.",Montreal,Quebec,Canada,Calorie,English,,2017-03-21,1000.00,1000.00,Contribution,"International Marketing Program",
2016-2017,P4,"9270-5201 Qu�bec Inc.",Montreal,Quebec,Canada,Solaris,,,2017-03-22,249975.00,249975.00,Contribution,"Promotion Program",
2016-2017,P4,"Accompany Productions Inc.",Yellowknife,"North W. Territories",Canada,"Sun At Midnight (The)",English,Action/Adventure,2017-03-23,1500.00,1500.00,Contribution,"International Marketing Program",
2016-2017,P4,"Accompany Productions Inc.",Yellowknife,"North W. Territories",Canada,"Sun At Midnight (The)",English,Action/Adventure,2017-03-23,1500.00,1500.00,Contribution,"International Marketing Program",
2016-2017,P4,"Eye Steel Film Distribution inc.",Montreal,Quebec,Canada,"Let There Be Light",English,Documentary,2017-03-27,4200.00,4200.00,Contribution,"International Marketing Program",
2016-2017,P4,"9324-3160 Qu�bec Inc.",Montreal,Quebec,Canada,"Ceux qui font les r�volutions � moiti�, n'ont fait que se creuser un tombeau",French,,2017-03-27,10000.00,10000.00,Contribution,"International Marketing Program",
2016-2017,P4,"CarpeDiem Film & TV Inc.",Montreal,Quebec,Canada,"La Course des Tuques / Snowtime! 2",,,2017-03-27,215834.00,215834.00,Avance,"Production Program - Greenlight",
2016-2017,P4,"2479529 Ontario Inc.",Toronto,Ontario,Canada,"La Course des Tuques / Snowtime! 2",English,Comedy,2017-03-27,4700.00,4700.00,Contribution,"International Marketing Program",
2016-2017,P4,"9341-9315 Qu�bec Inc.",Verdun,Quebec,Canada,"Geek Girls",English,Documentary,2017-03-28,3700.00,3700.00,Contribution,"International Marketing Program",
2016-2017,P4,"Nova Scotia College of Art and Design",Halifax,"Nova Scotia",Canada,"Research Project",,,2017-03-28,10750.00,10750.00,Contribution,"Promotion Program",
2016-2017,P4,"Qu�b�cor M�dia inc.",Montreal,Quebec,Canada,"Projet �l�phant",,,2017-03-29,129375.00,129375.00,Contribution,"Promotion Program",
2016-2017,P4,"White Pine Pictures Inc.",Toronto,Ontario,Canada,"All Governments Lie: Truth, Deception and the Spirit of I.F. Stone",English,Documentary,2017-03-29,1500.00,1500.00,Contribution,"International Marketing Program",
2016-2017,P4,"White Pine Pictures Inc.",Toronto,Ontario,Canada,"All Governments Lie: Truth, Deception and the Spirit of I.F. Stone",English,Documentary,2017-03-29,1000.00,1000.00,Contribution,"International Marketing Program",
2016-2017,P4,"Christal Films Productions Inc.",Montreal,Quebec,Canada,"Hana's Suitcase",,,2017-03-30,200000.00,200000.00,Avance,"Production Program - Greenlight",
2016-2017,P4,"Bankdrama Film Ltd.",Toronto,Ontario,Canada,Stockholm,English,Mystery/Crime/Police,2017-03-31,3000000.00,3000000.00,Investissement,"Production Program",
